Workbook

Sheet Cover
B3: Excel + VBA
B4: für Controller
B7: Kapitel | C7: 2
B8: Thema | C8: Aufgaben und Ziele
B10: Inhalt | C10: Forecast
B18: Version | C18: 2.0
B19: Autor | C19: Harald Nahrstedt
B20: Datum | C20: 2019-01-01
B23: Springer Verlag

Sheet Forecast
A1: Monat | B1: Plan | C1: Ist | D1: Übertrag | E1: Trend | F1: Schätzer | G1: Variation | H1: Mittelwert
A2: 1900-01-01 | B2: 3450 | C2: 3340 | D2: 3340 | E2: =IF(C2="",TREND($E1:E$2,$A1:A$2,A2),C2) -> 3340 | F2: =IF(C2="",FORECAST(A2,$F1:F$2,$A1:A$2),C2) -> 3340 | G2: =IF(C2="",GROWTH($G1:G$2,$A1:A$2,A2),C2) -> 3340 | H2: =IF(C2="",AVERAGE($H1:H$2)*(B2/B1),C2) -> 3340
A3: 1900-01-02 | B3: 4680 | C3: 3850 | D3: 3850 | E3: =IF(C3="",TREND($E$2:E2,$A$2:A2,A3),C3) -> 3850 | F3: =IF(C3="",FORECAST(A3,$F$2:F2,$A$2:A2),C3) -> 3850 | G3: =IF(C3="",GROWTH($G$2:G2,$A$2:A2,A3),C3) -> 3850 | H3: =IF(C3="",AVERAGE($H$2:H2)*(B3/B2),C3) -> 3850
A4: 1900-01-03 | B4: 3820 | C4: 3760 | D4: 3760 | E4: =IF(C4="",TREND($E$2:E3,$A$2:A3,A4),C4) -> 3760 | F4: =IF(C4="",FORECAST(A4,$F$2:F3,$A$2:A3),C4) -> 3760 | G4: =IF(C4="",GROWTH($G$2:G3,$A$2:A3,A4),C4) -> 3760 | H4: =IF(C4="",AVERAGE($H$2:H3)*(B4/B3),C4) -> 3760
A5: 1900-01-04 | B5: 4260 | C5: 3990 | D5: 3990 | E5: =IF(C5="",TREND($E$2:E4,$A$2:A4,A5),C5) -> 3990 | F5: =IF(C5="",FORECAST(A5,$F$2:F4,$A$2:A4),C5) -> 3990 | G5: =IF(C5="",GROWTH($G$2:G4,$A$2:A4,A5),C5) -> 3990 | H5: =IF(C5="",AVERAGE($H$2:H4)*(B5/B4),C5) -> 3990
A6: 1900-01-05 | B6: 4970 | C6: 3890 | D6: 3890 | E6: =IF(C6="",TREND($E$2:E5,$A$2:A5,A6),C6) -> 3890 | F6: =IF(C6="",FORECAST(A6,$F$2:F5,$A$2:A5),C6) -> 3890 | G6: =IF(C6="",GROWTH($G$2:G5,$A$2:A5,A6),C6) -> 3890 | H6: =IF(C6="",AVERAGE($H$2:H5)*(B6/B5),C6) -> 3890
A7: 1900-01-06 | B7: 5210 | C7: 4020 | D7: 4020 | E7: =IF(C7="",TREND($E$2:E6,$A$2:A6,A7),C7) -> 4020 | F7: =IF(C7="",FORECAST(A7,$F$2:F6,$A$2:A6),C7) -> 4020 | G7: =IF(C7="",GROWTH($G$2:G6,$A$2:A6,A7),C7) -> 4020 | H7: =IF(C7="",AVERAGE($H$2:H6)*(B7/B6),C7) -> 4020
A8: 1900-01-07 | B8: 5050 | D8: 4183.333333 | E8: =IF(C8="",TREND($E$2:E7,$A$2:A7,A8),C8) -> 4183.333333 | F8: =IF(C8="",FORECAST(A8,$F$2:F7,$A$2:A7),C8) -> 4183.333333 | G8: =IF(C8="",GROWTH($G$2:G7,$A$2:A7,A8),C8) -> 4208.127518 | H8: =IF(C8="",AVERAGE($H$2:H7)*(B8/B7),C8) -> 3691.378759
A9: 1900-01-08 | B9: 4930 | D9: 4290.47619 | E9: =IF(C9="",TREND($E$2:E8,$A$2:A8,A9),C9) -> 4290.47619 | F9: =IF(C9="",FORECAST(A9,$F$2:F8,$A$2:A8),C9) -> 4290.47619 | G9: =IF(C9="",GROWTH($G$2:G8,$A$2:A8,A9),C9) -> 4332.189561 | H9: =IF(C9="",AVERAGE($H$2:H8)*(B9/B8),C9) -> 3701.527504
A10: 1900-01-09 | B10: 5360 | D10: 4397.619048 | E10: =IF(C10="",TREND($E$2:E9,$A$2:A9,A10),C10) -> 4397.619048 | F10: =IF(C10="",FORECAST(A10,$F$2:F9,$A$2:A9),C10) -> 4397.619048 | G10: =IF(C10="",GROWTH($G$2:G9,$A$2:A9,A10),C10) -> 4459.909144 | H10: =IF(C10="",AVERAGE($H$2:H9)*(B10/B9),C10) -> 4110.090709
A11: 1900-01-10 | B11: 5280 | D11: 4504.761905 | E11: =IF(C11="",TREND($E$2:E10,$A$2:A10,A11),C11) -> 4504.761905 | F11: =IF(C11="",FORECAST(A11,$F$2:F10,$A$2:A10),C11) -> 4504.761905 | G11: =IF(C11="",GROWTH($G$2:G10,$A$2:A10,A11),C11) -> 4591.394096 | H11: =IF(C11="",AVERAGE($H$2:H10)*(B11/B10),C11) -> 3760.029519
A12: 1900-01-11 | B12: 5490 | D12: 4611.904762 | E12: =IF(C12="",TREND($E$2:E11,$A$2:A11,A12),C12) -> 4611.904762 | F12: =IF(C12="",FORECAST(A12,$F$2:F11,$A$2:A11),C12) -> 4611.904762 | G12: =IF(C12="",GROWTH($G$2:G11,$A$2:A11,A12),C12) -> 4726.755426 | H12: =IF(C12="",AVERAGE($H$2:H11)*(B12/B11),C12) -> 3962.88855
A13: 1900-01-12 | B13: 5510 | D13: 4719.047619 | E13: =IF(C13="",TREND($E$2:E12,$A$2:A12,A13),C13) -> 4719.047619 | F13: =IF(C13="",FORECAST(A13,$F$2:F12,$A$2:A12),C13) -> 4719.047619 | G13: =IF(C13="",GROWTH($G$2:G12,$A$2:A12,A13),C13) -> 4866.107414 | H13: =IF(C13="",AVERAGE($H$2:H12)*(B13/B12),C13) -> 3839.017915
A14: Gesamt | B14: =SUM(B2:B13) -> 58010 | C14: =SUM(C2:C13) -> 22850 | D14: =SUM(D2:D13) -> 49557.14286 | E14: =SUM(E2:E13) -> 49557.14286 | F14: =SUM(F2:F13) -> 49557.14286 | G14: 50034.48316 | H14: 45914.93296
